Cogmind - Beta 14 @@@ ROGUE MODE // 2024.09.20 @ 14:41:43 Player: Some Pennies Result: Destroyed by Y-54 Guardian with Flak Gun Performance ------------- Evolutions (3) 1500 Regions Visited (9) 1800 Robots Destroyed (134) 670 Value Destroyed (5393) 5393 Prototype IDs (28) 560 Alien Tech Used (0) 0 Bonus (1804) 1804 TOTAL SCORE: 11727 Bonus ------- High Alert Combat Kills 691 Follower Combat Kills 331 Entered Garrisons 200 Met Data Miner 300 Acquired ECA 300 Friendly Fire -18 Cogmind --------- Core Integrity 0/700 Matter 242/300 Energy 100/100 System Corruption 0% Temperature Cool (6) Movement Core (100) Ox1 Location -6/Proximity Caves Parts ------- > --- POWER (2) -------- (None) > --- PROPULSION (4) --- (None) > --- UTILITY (5) ------ Advanced Heat Sink Improved Cooling System Armor Integrity Analyzer Dynamic Insulation System > --- WEAPON (2) ------- (None) > --- INVENTORY (5) ---- Heavy Phase Cannon Plasma Cutter Multitool Makeshift Sword Peak State ------------ > --- POWER ------------ Improved Deuterium Engine Reinforced Deuterium Engine > --- PROPULSION ------- Light Treads Light Treads Armored Huge Wheel > --- UTILITY ---------- Large Storage Unit Machine Analyzer Heart of Steel > --- WEAPON ----------- KE Penetrator KE Penetrator > --- INVENTORY -------- Improved Cooling System Encrypted Comm Array Gun Armor Tesla Rifle Improved EM Pulse Cannon Heavy Phase Cannon Heavy Phase Cannon KE Penetrator Heavy Rocket Launcher Heavy Rocket Launcher Plasma Cutter Multitool Makeshift Sword [Rating: 64] Favorites ----------- Power Improved Ion Engine Engine Improved Ion Engine Power Core Light Nuclear Core Propulsion Light Treads Treads Light Treads Leg Aluminum Leg Wheel Armored Huge Wheel Flight Unit Cooled VTOL Module Utility Large Storage Unit Device Improved Cooling System Storage Large Storage Unit Processor Machine Analyzer Protection Light Armor Plating Weapon KE Penetrator Energy Gun Subdweller Laser Energy Cannon Subdweller Beam Cannon Ballistic Gun KE Penetrator Ballistic Cannon Battle Cannon Launcher Heavy Rocket Launcher Special Weapon Mining Laser Slashing Weapon Makeshift Sword Build | -11 -10 -10 -8 -8 -7 -7 -7 -7 -6 ------- Run | Yrd Mat Sub Mat Gar Fac Low Low Dat Pro Slots Evolved 6 | . . . 4 . 2 . . . . Power 1 | . . . . . 1 . . . . Propulsion 2 | . . . 2 . . . . . . Utility 3 | . . . 2 . 1 . . . . Weapon . | . . . . . . . . . . Parts Attached 173 | 7 12 33 19 46 28 2 5 1 20 Power 13 | 1 2 1 3 3 1 . . . 2 Engine 10 | 1 2 1 1 2 1 . . . 2 Core 3 | . . . 2 1 . . . . . Reactor . | . . . . . . . . . . Propulsion 39 | 2 1 2 5 17 5 2 . . 5 Treads 33 | 2 1 1 4 15 4 1 . . 5 Leg 2 | . . . . 2 . . . . . Wheel 3 | . . 1 1 . . 1 . . . Hover . | . . . . . . . . . . Flight 1 | . . . . . 1 . . . . Utility 41 | 2 3 3 7 11 4 . 5 . 6 Device 23 | 1 1 1 5 5 3 . 3 . 4 Storage 2 | 1 1 . . . . . . . . Processor 2 | . . . . 1 . . . . 1 Hackware . | . . . . . . . . . . Protection 14 | . 1 2 2 5 1 . 2 . 1 Artifact . | . . . . . . . . . . Weapon 80 | 2 6 27 4 15 18 . . 1 7 Energy Gun 18 | . 2 12 1 1 1 . . . 1 Energy Cannon 10 | . 2 3 . 1 2 . . 1 1 Ballistic Gun 28 | 2 1 3 3 9 9 . . . 1 Ballistic Cannon 2 | . . . . 2 . . . . . Launcher 13 | . . 3 . 2 6 . . . 2 Special Weapon 7 | . 1 6 . . . . . . . Impact Weapon . | . . . . . . . . . . Slashing Weapon 2 | . . . . . . . . . 2 Piercing Weapon . | . . . . . . . . . . Special Melee Weapon . | . . . . . . . . . . Unidentified Prototypes 5 | . . . 1 . 3 . 1 . . Parts Lost 54 | . 1 1 4 22 1 2 1 . 22 Power 7 | . . 1 . 2 . . . . 4 Propulsion 23 | . . . 3 10 . 2 . . 8 Utility 13 | . 1 . . 7 . . . . 5 Weapon 11 | . . . 1 3 1 . 1 . 5 Highest Loss Streak 13 | . 1 1 2 13 1 2 1 . 7 To Critical Strikes 1 | . . . . . . . . . 1 Average Slot Usage (%) 94 | . 99 99 94 90 99 93 91 92 70 Engine 12 | . 14 13 2 7 14 15 15 15 6 Treads 24 | . 27 24 24 27 30 18 15 15 12 Wheel 2 | . . 3 7 . . 5 7 7 6 Device 7 | . 12 . 17 10 9 15 14 15 10 Storage 10 | . 14 14 9 9 7 7 7 7 6 Processor 2 | . . . . 3 7 7 7 7 7 Protection 9 | . 1 13 9 10 12 7 6 7 3 Energy Gun 5 | . 1 12 2 3 . . . . . Energy Cannon 6 | . 10 9 5 2 5 . . 7 6 Ballistic Gun 9 | . 15 5 10 11 8 15 14 7 6 Peak Build Rating 64 | 7 11 16 33 39 51 53 64 51 59 Average Rating 26 | 5 8 12 25 30 46 51 52 51 45 On Entrance 29 | . 7 10 13 31 39 47 53 46 51 Naked Turns . | . . . . . . . . . . Heaviest Build 77 | 14 41 46 48 60 77 66 66 71 71 Greatest Support 80 | 40 40 40 80 80 80 80 28 28 70 Greatest Overweight (x) 9 | . 1 2 2 9 . 2 2 2 2 Average Overweight (x) . | . . . . . . 1 1 2 . Largest Inventory Capacity 15 | 8 15 15 15 15 15 15 15 15 15 Average Capacity 14 | 7 11 15 15 15 15 15 15 15 14 Most Carried 15 | 5 15 15 15 15 15 15 15 14 15 Average Carried 13 | 2 9 14 13 13 14 13 14 14 13 Final Capacity 15 | 8 15 15 15 15 15 15 15 15 5 Final Carried 15 | 5 14 15 15 15 15 13 15 14 4 Class Distribution -------------------- 53% | Mutant 46% | Scavenger-Mutant Dominant Class ---------------- Mutant | -10/Materials Mutant | -10/Subcaves Scavenger-Mutant | -8/Materials Scavenger-Mutant | -8/Garrison Scavenger-Mutant | -7/Factory Scavenger-Mutant | -7/Lower Caves Scavenger-Mutant | -7/Lower Caves Scavenger-Mutant | -7/Data Miner Scavenger-Mutant | -6/Proximity Caves Resources | -11 -10 -10 -8 -8 -7 -7 -7 -7 -6 ----------- Run | Yrd Mat Sub Mat Gar Fac Low Low Dat Pro Matter Collected 3894 | 306 403 495 513 1025 448 316 90 . 298 Remotely . | . . . . . . . . . . Salvage Created 5445 | 134 550 616 972 1098 1105 248 43 . 679 Parts 298 | 13 35 37 47 75 57 5 3 . 26 Haulers Intercepted 7 | . 2 . 2 . 3 . . . . Recyclers Shooed 4 | . 1 . 1 . . . . . 2 Parts Field Recycled . | . . . . . . . . . . Retrieved Matter . | . . . . . . . . . . Parts Self-Destructed 35 | . . 8 . . . 5 4 . 18 Prevented . | . . . . . . . . . . Kills | -11 -10 -10 -8 -8 -7 -7 -7 -7 -6 ------- Run | Yrd Mat Sub Mat Gar Fac Low Low Dat Pro Combat Hostiles Destroyed 105 | . 10 13 14 30 21 6 1 . 10 Melee 2 | . . . . . . . . . 2 Guns 58 | . 6 5 9 22 6 6 1 . 3 Cannons 21 | . 4 4 4 5 4 . . . . AOE 23 | . . 4 . 3 11 . . . 5 Classes Destroyed 17 | 2 6 2 2 2 3 . . . . Worker 7 | . 1 . 3 . 3 . . . . Builder 2 | . . . 1 . 1 . . . . Tunneler 3 | 3 . . . . . . . . . Hauler 7 | . 2 . 2 . 3 . . . . Recycler 6 | 1 1 . 1 . 2 . . . 1 Mechanic 2 | . . . 1 . 1 . . . . Watcher 2 | . 1 . . . 1 . . . . Swarmer 19 | . 3 . . 11 3 2 . . . Grunt 36 | . 4 . 10 4 8 4 . . 6 Duelist 4 | . . . . . 4 . . . . Protector 1 | . . . . . 1 . . . . Sentry 19 | . . 1 4 10 2 . . . 2 Hunter 3 | . . . . . 1 . 1 . 1 Programmer 5 | . . . . 3 2 . . . . Behemoth 3 | . . . . 2 . . . . 1 Artisan 2 | . . 2 . . . . . . . Subdweller 15 | . 3 12 . . . . . . . Best Kill Streak 7 | 3 5 2 7 5 5 4 1 . 4 Combat Bots Only 5 | . 5 2 3 5 5 4 1 . 4 Max Kills in Single Turn 4 | 1 2 1 1 3 4 1 1 . 3 Gunslinging 1 | . 1 . . . . . . . . Exploded 4 | . . 1 . 3 4 . . . 3 Melee 1 | . . . . . . . . . 1 Uniques/NPCs Destroyed . | . . . . . . . . . . Combat | -11 -10 -10 -8 -8 -7 -7 -7 -7 -6 -------- Run | Yrd Mat Sub Mat Gar Fac Low Low Dat Pro Hostile Shots Fired 824 | . 40 41 94 247 70 33 15 . 284 Missed 255 | . 14 7 25 69 29 10 4 . 97 Damage Taken 9695 | . 327 833 900 3482 569 393 236 . 2955 Core 1280 | . 37 134 74 332 28 . 35 . 640 Absorbed by Shields 175 | . . . 160 15 . . . . . Ignored by Resistances 8 | . . . . . 8 . . . . Regen/Repaired (Parts) 163 | . 163 . . . . . . . . Core Remaining (%) 52 | 100 . 31 . 26 . . . . . Volleys Fired 455 | 9 50 84 74 115 49 16 5 . 53 Largest 2 | 2 2 2 2 2 2 2 2 . 2 Hottest 160 | 40 140 140 160 123 123 66 66 . 155 Shots Fired 829 | 18 93 115 145 218 98 32 10 . 100 Gun 555 | 18 64 59 115 161 49 32 10 . 47 Cannon 209 | . 27 10 30 56 39 . . . 47 Launcher 23 | . . 6 . 1 10 . . . 6 Special 42 | . 2 40 . . . . . . . Kinetic 494 | 18 64 29 97 152 49 32 10 . 43 Thermal 309 | . 29 81 48 65 39 . . . 47 Explosive 21 | . . 4 . 1 10 . . . 6 Electromagnetic 5 | . . 1 . . . . . . 4 Robot Hit Streak 25 | 3 13 20 14 25 7 7 5 . 13 Robot Miss Streak 10 | 1 10 1 3 2 4 3 2 . 4 Penetration Max 1 | . . . . 1 1 . . . . Secondary Targets 12 | . 2 . 3 4 . 3 . . . Max Gunslinging Chain 1 | . 1 . 1 1 . 1 . . . Shots Hit Robots 527 | 11 49 51 98 157 55 21 6 . 79 Core Hits 240 | 5 25 22 35 57 55 10 2 . 29 Critical Kills 3 | . . . . 3 . . . . . Critical Parts Destroyed 6 | . . . . 3 2 . . . 1 Critical Strikes 19 | . . . 1 15 2 . . . 1 Burn 6 | . . . 1 5 . . . . . Destroy 13 | . . . . 10 2 . . . 1 Melee Attacks 13 | . . . . . . . . . 13 Impact . | . . . . . . . . . . Slashing 13 | . . . . . . . . . 13 Piercing . | . . . . . . . . . . Sneak Attacks . | . . . . . . . . . . Combat Hostiles . | . . . . . . . . . . Follow-up Attacks . | . . . . . . . . . . Damage Inflicted 14586 | 124 651 1250 2003 3467 3419 504 96 . 3072 Guns 7385 | 124 391 765 1559 2428 701 504 96 . 817 Cannons 3869 | . 260 196 444 852 840 . . . 1277 Explosions 3041 | . . 289 . 187 1868 . . . 697 Melee 281 | . . . . . . . . . 281 Ramming 10 | . . . . . 10 . . . . Kinetic 6593 | 124 391 572 1277 2187 701 504 96 . 741 Thermal 4811 | . 260 524 726 1093 840 . . . 1368 Explosive 2800 | . . 139 . 187 1868 . . . 606 Electromagnetic 91 | . . 15 . . . . . . 76 Impact . | . . . . . . . . . . Slashing 281 | . . . . . . . . . 281 Piercing . | . . . . . . . . . . Highest Corruption 2 | . . . . 2 . . . . . Average Corruption 1 | . . . . 1 . . . . . Corruption Purged . | . . . . . . . . . . Corruption Blocked . | . . . . . . . . . . Effects 20 | . . . . 20 . . . . . Message Errors 8 | . . . . 8 . . . . . Matter Fused 6 | . . . . 6 . . . . . Heat Flow Errors 1 | . . . . 1 . . . . . Energy Discharges 2 | . . . . 2 . . . . . Data Loss (minor) 2 | . . . . 2 . . . . . Data Loss (major) 1 | . . . . 1 . . . . . Overload Shots . | . . . . . . . . . . Overflow Damage 137 | . 11 21 . 13 66 . . . 26 Projectiles 77 | . 11 21 . 13 19 . . . 13 Explosions 60 | . . . . . 47 . . . 13 Melee . | . . . . . . . . . . Knockbacks . | . . . . . . . . . . Impact . | . . . . . . . . . . Kinetic . | . . . . . . . . . . Secondary . | . . . . . . . . . . Self-Inflicted Damage 238 | . . 30 . . . . . . 208 Shots 6 | . . 1 . . . . . . 5 Rammed 1 | . . . . . 1 . . . . Targets Rammed 2 | . . . . . 2 . . . . Kicked . | . . . . . . . . . . Crushed 1 | . . . . . 1 . . . . Highest Temperature 448 | . 276 223 448 362 7 . . . 297 Average Temperature 79 | . 79 58 132 48 4 . . . 79 Received Heat Transfer 2714 | . 72 460 465 961 87 207 12 . 450 Effects 9 | . . . 6 . . . . . 3 Shutdowns 1 | . . . 1 . . . . . . Interference 3 | . . . . . . . . . 3 Matter Decay 1 | . . . 1 . . . . . . Damage (major) 4 | . . . 4 . . . . . . Siege Activations . | . . . . . . . . . . Robots Corrupted . | . . . . . . . . . . Combat Hostiles . | . . . . . . . . . . Parts Fried . | . . . . . . . . . . Impact Corruptions . | . . . . . . . . . . Robots Melted 1 | . . . 1 . . . . . . Combat Hostiles 1 | . . . 1 . . . . . . Parts Melted 9 | . 1 . 4 4 . . . . . Heat Transferred 6842 | . 518 659 1221 2013 1018 . . . 1413 Parts Sabotaged . | . . . . . . . . . . Parts Stolen . | . . . . . . . . . . Parts Stripped . | . . . . . . . . . . Power Chain Reactions 2 | . . . . . . . . . 2 Alert | -11 -10 -10 -8 -8 -7 -7 -7 -7 -6 ------- Run | Yrd Mat Sub Mat Gar Fac Low Low Dat Pro Peak Influence 1333 | 20 211 . 342 1333 810 . . . . Initial 699 | . 13 . . 180 699 . . . . Average 470 | 10 36 . 166 766 658 . . . . Maximum Alert Level 4 | . 1 . 1 4 3 . . . . Low Security (%) 34 | 100 98 . 56 1 . . . . . Level 1 9 | . 1 . 43 14 . . . . . Level 2 19 | . . . . 8 59 . . . . Level 3 34 | . . . . 66 40 . . . . Level 4 2 | . . . . 7 . . . . . Level 5 . | . . . . . . . . . . High Security . | . . . . . . . . . . Max Security . | . . . . . . . . . . Squads Dispatched 14 | . . . 5 . 6 . . . 3 Investigation 1 | . . . . . . . . . 1 Extermination 1 | . . . . . 1 . . . . Reinforcement 5 | . . . 1 . 2 . . . 2 Assault 3 | . . . . . 3 . . . . Garrison 4 | . . . 4 . . . . . . Intercept . | . . . . . . . . . . Searches Triggered . | . . . . . . . . . . Construction Impeded 2 | . . . . . . . . . 2 Haulers Reinforced 2 | . . . . . 2 . . . . Active Scanning Responses . | . . . . . . . . . . Cargo Convoy Interrupts . | . . . . . . . . . . Stealth | -11 -10 -10 -8 -8 -7 -7 -7 -7 -6 --------- Run | Yrd Mat Sub Mat Gar Fac Low Low Dat Pro Distress Signals 6 | . 1 . 3 . 1 . . . 1 Communications Jammed . | . . . . . . . . . . Distress Signals . | . . . . . . . . . . Times Spotted 156 | . 21 13 30 39 30 5 2 . 16 Peak Tracking Total 8 | . 5 2 8 6 6 3 1 . 6 Tactical Retreats 8 | . 1 . 2 4 . . . . 1 Traps | -11 -10 -10 -8 -8 -7 -7 -7 -7 -6 ------- Run | Yrd Mat Sub Mat Gar Fac Low Low Dat Pro Traps Triggered 10 | . . 2 . 8 . . . . . Indirectly . | . . . . . . . . . . Trap Hack Attempts . | . . . . . . . . . . Triggered . | . . . . . . . . . . Disarmed . | . . . . . . . . . . Reprogrammed . | . . . . . . . . . . Reused . | . . . . . . . . . . Traps Extracted . | . . . . . . . . . . Installed . | . . . . . . . . . . Triggered 1 | . . . . . . 1 . . . Machines | -11 -10 -10 -8 -8 -7 -7 -7 -7 -6 ---------- Run | Yrd Mat Sub Mat Gar Fac Low Low Dat Pro Machines Disabled 9 | . 1 1 . 4 2 . . . 1 Max in Single Turn 2 | . 1 1 . 1 2 . . . . Garrison Relay 4 | . . . . 4 . . . . . Machines Repaired . | . . . . . . . . . . Machines Dismantled . | . . . . . . . . . . Machines Sabotaged . | . . . . . . . . . . Overloaded Fab Kills . | . . . . . . . . . . Hacking | -11 -10 -10 -8 -8 -7 -7 -7 -7 -6 --------- Run | Yrd Mat Sub Mat Gar Fac Low Low Dat Pro Machines Accessed 30 | . 9 3 1 2 8 . 1 4 2 Terminals 16 | . 7 . . 2 7 . . . . Fabricators 1 | . . . . . . . . . 1 Repair Stations 1 | . 1 . . . . . . . . Recycling Units 3 | . 1 . . . 1 . . . 1 Scanalyzers . | . . . . . . . . . . Garrison Access 1 | . . . 1 . . . . . . Total Hacks 90 | . 30 6 1 4 15 . 1 28 5 Successful 66 | . 21 6 1 2 6 . 1 28 1 Failed 23 | . 8 . . 2 9 . . . 4 Catastrophic 3 | . 1 . . . 2 . . . . Database Lockouts 1 | . 1 . . . . . . . . Manual 21 | . 16 . . . 5 . . . . Terminals 40 | . 23 . . 4 13 . . . . Fabricators 3 | . . . . . . . . . 3 Repair Stations 4 | . 4 . . . . . . . . Recycling Units 7 | . 3 . . . 2 . . . 2 Scanalyzers . | . . . . . . . . . . Garrison Access 1 | . . . 1 . . . . . . Terminal Hacks 49 | . 9 6 . 2 3 . 1 28 . Record 15 | . . 4 . . . . . 11 . Part Schematic 10 | . 1 . . . . . . 9 . Robot Schematic 5 | . . . . . . . . 5 . Prototype ID Bank 5 | . 2 . . . . . . 3 . Open Door 3 | . . 1 . 1 . . 1 . . Branch Access Points 1 | . . . . . 1 . . . . Emergency Access Points 1 | . . . . 1 . . . . . Terminal Index 1 | . 1 . . . . . . . . Alert Level 1 | . . . . . 1 . . . . Unreport Threat 3 | . 2 . . . 1 . . . . Locate Traps 2 | . 2 . . . . . . . . Hauler Manifests 1 | . 1 . . . . . . . . Derelict Proto ID Bank 1 | . . 1 . . . . . . . Fabricator Hacks 1 | . . . . . . . . . 1 Load Schematic 1 | . . . . . . . . . 1 Repair Station Hacks 4 | . 4 . . . . . . . . Scan Component 2 | . 2 . . . . . . . . Repair 2 | . 2 . . . . . . . . Recycling Unit Hacks . | . . . . . . . . . . Scanalyzer . | . . . . . . . . . . Garrison Access Hacks 1 | . . . 1 . . . . . . Unlock Access 1 | . . . 1 . . . . . . Unauthorized Hacks 11 | . 8 . . . 3 . . . . Terminals 11 | . 8 . . . 3 . . . . Assimilate 1 | . . . . . 1 . . . . Botnet 3 | . 2 . . . 1 . . . . Operators 1 | . . . . . 1 . . . . Skim 6 | . 6 . . . . . . . . Fabricators . | . . . . . . . . . . Repair Stations . | . . . . . . . . . . Recycling Units . | . . . . . . . . . . Scanalyzers . | . . . . . . . . . . Garrison Access . | . . . . . . . . . . Data Cores Recovered . | . . . . . . . . . . Used . | . . . . . . . . . . Hacking Detections 20 | . 8 . . 2 8 . . . 2 Full Trace Events 2 | . . . . 1 . . . . 1 Feedback Events 1 | . . . . 1 . . . . . Corruption 1 | . . . . 1 . . . . . Feedback Blocked . | . . . . . . . . . . Robot Schematics Acquired 5 | . . . . . . . . 5 . Robots Built . | . . . . . . . . . . Authchips . | . . . . . . . . . . Time . | . . . . . . . . . . Total Robot Build Rating . | . . . . . . . . . . Part Schematics Acquired 10 | . 1 . . . . . . 9 . Parts Built . | . . . . . . . . . . Authchips . | . . . . . . . . . . Time . | . . . . . . . . . . Total Part Build Rating . | . . . . . . . . . . Parts Repaired 2 | . 2 . . . . . . . . Time 52 | . 52 . . . . . . . . Parts Recycled . | . . . . . . . . . . Recycled Matter . | . . . . . . . . . . Retrieved Matter . | . . . . . . . . . . Retrieved Components . | . . . . . . . . . . Parts Scanalyzed . | . . . . . . . . . . Part Schematics Acquired . | . . . . . . . . . . Parts Damaged . | . . . . . . . . . . Bothacking | -11 -10 -10 -8 -8 -7 -7 -7 -7 -6 ------------ Run | Yrd Mat Sub Mat Gar Fac Low Low Dat Pro Used RIF Installer . | . . . . . . . . . . Robots Hacked . | . . . . . . . . . . Non-combat . | . . . . . . . . . . Combat . | . . . . . . . . . . Robot Hacks Applied . | . . . . . . . . . . Relay Couplers Released 18 | . . . . 18 . . . . . Machine Destruction 18 | . . . . 18 . . . . . Fabnet Peak Effective % . | . . . . . . . . . . Robots Rewired . | . . . . . . . . . . Allies Hacked . | . . . . . . . . . . Hacks Repelled . | . . . . . . . . . . Allies | -11 -10 -10 -8 -8 -7 -7 -7 -7 -6 -------- Run | Yrd Mat Sub Mat Gar Fac Low Low Dat Pro Total Allies 4 | . . . . 2 1 . . . 1 Largest Group 2 | . . . . 2 1 . . . 1 Highest-Rated Group 96 | . . . . 56 26 . . . 96 Highest-Rated Ally 96 | . . . . 31 26 . . . 96 Total Orders . | . . . . . . . . . . Ally Attacks 68 | . . . . 24 . . . . 44 Total Damage 1933 | . . . . 444 . . . . 1489 Kills 12 | . . . . 5 . . . . 7 Allies Corrupted . | . . . . . . . . . . Allies Melted . | . . . . . . . . . . Intel | -11 -10 -10 -8 -8 -7 -7 -7 -7 -6 ------- Run | Yrd Mat Sub Mat Gar Fac Low Low Dat Pro Robot Analysis Total . | . . . . . . . . . . Derelict Logs Recovered 2 | . . 1 . . . . . . 1 Drone Launches . | . . . . . . . . . . Drone Recoveries . | . . . . . . . . . . Exploration | -11 -10 -10 -8 -8 -7 -7 -7 -7 -6 ------------- Run | Yrd Mat Sub Mat Gar Fac Low Low Dat Pro Turns Passed 11789 | 162 1409 4246 527 1909 1507 458 464 100 1007 Spaces Moved 5979 | 78 697 2216 149 821 806 295 334 77 506 Core 26 | 2 . . . 24 . . . . . Treads 4174 | 76 697 1479 118 762 806 48 . . 188 Legs 35 | . . . . 35 . . . . . Wheels 1744 | . . 737 31 . . 247 334 77 318 Hover . | . . . . . . . . . . Flight . | . . . . . . . . . . Fastest Speed 50 | 50 160 120 130 160 160 130 115 130 100 Average Speed 162 | 157 161 174 155 177 160 136 129 130 135 Slowest Speed 500 | 160 240 240 163 500 160 240 130 130 240 Overloaded Moves . | . . . . . . . . . . Propulsion Burnouts . | . . . . . . . . . . Robots Hopped . | . . . . . . . . . . Cave-ins Triggered . | . . . . . . . . . . Exploration Rate (%) 52 | 7 92 94 12 79 21 48 57 68 43 Regions Visited 9 Branch Regions 5 Pre-discovered Areas 4 | . . 2 . . . 1 . 1 . Known Exits Taken 4 | . 1 1 1 . 1 . . . . Unknown Exits Taken 4 | 1 . . . . . 1 1 1 . Scrap Searched 16 | . . 12 . . . 1 3 . . Spaces Dug 26 | . 4 9 . . 13 . . . . Terrain Destroyed 158 | . 9 49 11 15 62 3 1 . 8 Melee . | . . . . . . . . . . Projectile 51 | . 9 1 11 . 18 3 1 . 8 AOE 106 | . . 48 . 14 44 . . . . Terrain Rammed . | . . . . . . . . . . Walls Destroyed . | . . . . . . . . . . Machines Disabled . | . . . . . . . . . . Actions | -11 -10 -10 -8 -8 -7 -7 -7 -7 -6 --------- Run | Yrd Mat Sub Mat Gar Fac Low Low Dat Pro Total 7124 | 98 892 2404 302 1051 919 317 355 77 709 Wait 321 | . 101 41 33 16 16 3 . . 111 Move 5970 | 77 696 2215 149 819 805 294 333 76 506 Hop . | . . . . . . . . . . Pick Up 88 | 5 20 14 12 21 6 1 4 . 5 Fast Attach 49 | 7 2 2 5 18 6 . 4 . 5 Attach 37 | . 2 4 5 11 3 1 . 1 10 Detach 1 | . . . . . . . . . 1 Swap 88 | . 8 27 9 17 20 1 1 . 5 Drop 89 | . 13 17 15 24 12 1 7 . . Fire 455 | 9 50 84 74 115 49 16 5 . 53 Melee 13 | . . . . . . . . . 13 Ram . | . . . . . . . . . . Kick . | . . . . . . . . . . Crush 2 | . . . . . 2 . . . . Escape Stasis 10 | . . . . 10 . . . . . Rewire 1 | . . . . . . . 1 . . Trap . | . . . . . . . . . . Miscellaneous . | . . . . . . . . . . Route ------- -11/Scrapyard -10/Materials (discovered 6 exits: [*Mat x3] / [*Min x2] / *Sub) -10/Subcaves (discovered 3 exits: *Mat x2 / [*Rec]) -8/Materials (discovered 4 exits: Fac x3 / Gar) -8/Garrison (discovered 3 exits: *Fac x3) -7/Factory (discovered 4 exits: [*Fac] / Sto / *Low x2) -7/Lower Caves -7/Lower Caves (discovered 2 exits: [*Fac] / *Dat) -7/Data Miner -6/Proximity Caves History --------- Turn | Location | Event 25 | -11/Scrapyard | Discovered new exit (range 15) 163 | -11/Scrapyard | Entered Materials 308 | -10/Materials | Discovered new exit (range 4) 316 | -10/Materials | Build established: Mutant 416 | -10/Materials | Central database locked down 563 | -10/Materials | Discovered new exit (range 10) 619 | -10/Materials | Discovered new exit (range 15) 847 | -10/Materials | Discovered new exit (range 9) 963 | -10/Materials | Derelicts attacked the area 1043 | -10/Materials | Discovered new exit (range 12) 1239 | -10/Materials | Repaired Lgt. Treads 1267 | -10/Materials | Repaired Lgt. Armor Plating 1312 | -10/Materials | Learned Storage garrison access intel 1387 | -10/Materials | Learned location of 2 exits from Mines 1420 | -10/Materials | Identified exit to Subcaves 1420 | -10/Materials | Learned location of 2 exits from Materials 1572 | -10/Materials | Entered Subcaves 1573 | -10/Subcaves | A swath of the cavern ceiling suddenly collapsed 1573 | -10/Subcaves | Identified exit to Materials 1606 | -10/Subcaves | Discovered new exit (range 15) 1631 | -10/Subcaves | Shifting Twisted Machinery released Sub. Laser 1705 | -10/Subcaves | Shifting Twisted Machinery released Sub. Power Source 1752 | -10/Subcaves | Shifting Twisted Machinery released Sub. Monowheel 1856 | -10/Subcaves | Shifting Twisted Machinery released Mak. System Restoration Module 1980 | -10/Subcaves | Shifting Twisted Machinery released Barrage Gun 2525 | -10/Subcaves | Core integrity fell below 50% 2674 | -10/Subcaves | Learned location of 1 exit from Materials 2690 | -10/Subcaves | Visited Clippyterm 2695 | -10/Subcaves | Learned location of Extension (-6) 2695 | -10/Subcaves | Learned location of Section 7 (-2) 3886 | -10/Subcaves | Curiously followed by a Cobbler waking with a query about "LVR3C" 4198 | -10/Subcaves | Visited 4L-MR0's lab 4230 | -10/Subcaves | Found Gun Armor 5818 | -10/Subcaves | Entered Materials 5818 | -8/Materials | Evolved 4 slots: Propulsion x2, Utility x2 5819 | -8/Materials | Identified exit to Factory 5924 | -8/Materials | Garrison activated, responded to threat 6122 | -8/Materials | Build established: Scavenger-Mutant 6249 | -8/Materials | Garrison activated, responded to threat 6345 | -8/Materials | Identified exit to Garrison 6345 | -8/Materials | Entered Garrison 6529 | -8/Garrison | Rescued a captive Derelict 6536 | -8/Garrison | Rescued a captive Derelict 6647 | -8/Garrison | Triggered checkpoint 6662 | -8/Garrison | Garrison Relay disabled 6761 | -8/Garrison | Triggered checkpoint 6787 | -8/Garrison | Triggered checkpoint 6903 | -8/Garrison | Triggered checkpoint 6941 | -8/Garrison | Garrison Relay disabled 6990 | -8/Garrison | Discovered exit to Factory (range 9) 7022 | -8/Garrison | Spotted B-75 Beast 7104 | -8/Garrison | Destroyed B-75 Beast 7131 | -8/Garrison | Lost 13 parts (2p5n4u2w) 7678 | -8/Garrison | Spotted B-75 Beast 7704 | -8/Garrison | Core integrity fell below 50% 7713 | -8/Garrison | Discovered exit to Factory (range 14) 7730 | -8/Garrison | Destroyed B-75 Beast 7753 | -8/Garrison | Lost 6 parts (3n2u1w) 7809 | -8/Garrison | Triggered checkpoint 7842 | -8/Garrison | Garrison Relay disabled 7985 | -8/Garrison | Attempted to access garrison exit controls, blocked by remote lockdown 8086 | -8/Garrison | Discovered exit to Factory (range 12) 8117 | -8/Garrison | Triggered checkpoint 8203 | -8/Garrison | Garrison Relay disabled 8254 | -8/Garrison | Entered Factory 8254 | -7/Factory | Evolved 2 slots: Power x1, Utility x1 8790 | -7/Factory | Discovered new exit (range 3) 9054 | -7/Factory | First assault squad dispatched 9226 | -7/Factory | Identified exit to Storage 9226 | -7/Factory | Identified exit to Lower Caves 9761 | -7/Factory | Entered Lower Caves 9772 | -7/Lower Caves | Met a Warlord Commander 9773 | -7/Lower Caves | Learned location of Warlord (-5) 9774 | -7/Lower Caves | Warlord Commander delivered Encrypted Comm Array 9777 | -7/Lower Caves | Found Encrypted Comm Array 9938 | -7/Lower Caves | Encountered a Warlord checkpoint 10211 | -7/Lower Caves | Discovered new exit (range 5) 10219 | -7/Lower Caves | Entered another Lower Caves area 10237 | -7/Lower Caves | Found Prototype Device 10237 | -7/Lower Caves | Identified Heart of Steel 10275 | -7/Lower Caves | Discovered new exit (range 5) 10645 | -7/Lower Caves | Discovered new exit (range 13) 10667 | -7/Lower Caves | Encountered a Warlord checkpoint 10676 | -7/Lower Caves | Spotted B-75 Beast 10683 | -7/Lower Caves | Entered Data Miner 10684 | -7/Data Miner | Discovered new exit (range 6) 10709 | -7/Data Miner | Met Data Miner 10733 | -7/Data Miner | Acquired the access code to Warlord's prototype stash 10753 | -7/Data Miner | Received God Mode back door access code from Data Miner 10783 | -7/Data Miner | Entered Proximity Caves 10897 | -6/Proximity Caves | Learned Factory machine intel 10962 | -6/Proximity Caves | Spotted B-75 Beast 10963 | -6/Proximity Caves | Entered a huge 0b10 base via the front door 11135 | -6/Proximity Caves | Lost 5 parts (1p1n2u1w) 11211 | -6/Proximity Caves | Core integrity fell below 50% 11222 | -6/Proximity Caves | Destroyed B-75 Beast 11386 | -6/Proximity Caves | Escorted by Enhanced Grunt 11395 | -6/Proximity Caves | Build established: Mutant 11763 | -6/Proximity Caves | Lost 4 parts (1p2n1w) 11788 | -6/Proximity Caves | Core integrity fell below 20% 11790 | -6/Proximity Caves | Destroyed by Y-54 Guardian with Flak Gun Last Messages --------------- 11779_ R-10 Processor destroyed. 11780_ Corrupted Carbon-fiber Leg fries itself beyond repair. 11780_ U-05 Engineer lays Concrete. 11781_ Slug penetrates Reinforced Barrier. 11782_ U-05 Engineer builds a Door. 11785_ Imp. Medium Treads destroyed. 11786_ Y-54 Guardian destroyed. 11786_ U-05 Engineer lays Concrete. 11787_ Penetrated by Slug. 11787_ Tesla Rifle destroyed. 11787_ U-05 Engineer lays Concrete. 11788_ ALERT: Construction progress impeded, dispatching reinforcements to local area. 11790_ Lgt. Angular Momentum Engine destroyed. 11790_ Destroyed Lgt. Angular Momentum Engine. 11790_ Hvy. Rocket Launcher destroyed. 11790_ Penetrated by Slug. 11790_ Critical hit (Destroy). 11790_ Lgt. Treads destroyed. Map ----- +----------------------------------------------------+ | ?????????????????????????????????????????????????? | | ?????????????????????????????????????????????????? | | ?????????????????????????????????????????????????? | | ##############???????????????????????????????????? | | " #???????????????????????????????????? | | " #???????????????????????????????????? | | " ?????????????????????????????????????? | | " ## #####+######+??????????????????????????? | | " ?????????????????????????? | | % ?????????????????????????? | | % ?????????????????????????? | | ## %###### ###+###??????????????????????????? | | % #??#????????????????????????????????? | | % # ?????????????????????????????????? | | # #????????????????????????????????? | | + # #????????????????????????????????? | | # " "#%%#????????????????????????????????? | | # "Y"#=%#????????????????????????????????? | | # """# !#????????????????????????????????? | | ########### ###############??????????????????? | | """ # # #??????????????????? | | ""F""# # #??????????????????? | | "" ""# # ]! #??????????????????? | | !!! # # !== %! #??????????????????? | | ######### ### %##### #???????????????? | | u h[@] = #???????????????? | | % = Y!Y #???????????????? | | ######### ####### ##+#???????????????? | | ####???## #?????? #??????????????????? | | #???# #??????? #??????????????????? | | ##??## #????????#??????????????????? | | #???# % #???????????????????????????? | | ##???###### ## ###???????????????????????????? | | #?????????# ####?????????????????????????????? | | ########### #????????????????????????????????? | | #????????????????????????????????? | | ^ #????????????????????????????????? | | ###########+#####?????????????????????????????? | | #?????#%%% %%%#?????????????????????????????? | | #?????#%%% %%%#?????????????????????????????? | | ####?????#%%% %%%#?????????????????????????????? | | ?????????#%%% %%%#?????????????????????????????? | | ?????????## #?????????????????????????????? | | ??????????### ## #?????????????????????????????? | | ????????????########?????????????????????????????? | | ?????????????????????????????????????????????????? | | ?????????????????????????????????????????????????? | | ?????????????????????????????????????????????????? | | ?????????????????????????????????????????????????? | | ?????????????????????????????????????????????????? | +----------------------------------------------------+ Best States ------------- Heat Dissipation 80 Energy Generation 31 Energy Capacity 480 Matter Stores 300 Matter Capacity 300 Sight Range 16 Terrain Scan Density 10 Jamming Range 12 EM Shielding 2 Armor Coverage 450 Resistance: TH 15 Evasion (%) 40 Armor Integrity Analysis 30 Recoil Reduction 4 Item Schematics ----------------- Huge Storage Unit | -10/Materials | Hacked Combat Drone Bay | -7/Data Miner | Free Lgt. Regenerative Plating | -7/Data Miner | Free Cld. Cesium-ion Thruster | -7/Data Miner | Free Gravity Neutralizer | -7/Data Miner | Free Imp. Heavy Machine Gun | -7/Data Miner | Free Antigrav System | -7/Data Miner | Free Imp. Launcher Guidance Computer | -7/Data Miner | Free Tesla Rifle | -7/Data Miner | Free Hyb. Antimatter Reactor | -7/Data Miner | Free Robot Schematics ------------------ H-55 Commando | -7/Data Miner | Free G-47 Trooper | -7/Data Miner | Free S-27 Virus | -7/Data Miner | Free G-50 Soldier | -7/Data Miner | Free B-48 Gladiator | -7/Data Miner | Free Fabricated ------------ Nothing Alien Tech Used ----------------- None Achievements -------------- None Challenges ------------ None Game ------ Seed MediumMultinovaDoomcannon Manual? 0 Play Time 01:10:53 Cumulative 329.1 hours Start 2024.09.20 @ 04:49:22 End 2024.09.20 @ 14:41:43 Sessions 3 Manual Loads 0 Difficulty Rogue Special Mode None Game No. 233 Rogue 228 Adventurer 5 Explorer 0 Win Type - Total 7 Types 4/0/3/0/0/0/0/0/0 Lore% 67 Gallery% 85 Achievement% 69 Wizard Run 0 Options --------- Layout 2 ASCII 0 Keyboard 0 Movement Mouse Keybinds 0 Fullscreen 2 Font 24/Smallcaps Map View 50x44 Zoom Use 0% Tactical HUD 1 Map Filters NONE Filters NONE Steam 1 RUN: 3628b5f2-a13a-4b3a-b92b-cc321908765c